fUST/lending_fUST_20251108
["ID","MTS","AMOUNT","RATE_DAILY","PERIOD"]
[393408718,1762611033813,-742.64658031,0.00025207,2]
[393408719,1762611033823,-500.0,0.00025421,2]
[393408720,1762611033832,-500.0,0.00025421,2]
[393408721,1762611033842,-1000.0,0.000255,2]
[393408722,1762611033851,-232.60793322,0.00025521,2]
[393408723,1762611033862,-1000.0,0.00025521,2]
[393408724,1762611033871,-1000.0,0.00025521,2]
[393408725,1762611033881,-360.0,0.00025596,2]
[393408726,1762611033891,-420.0,0.00025602,2]
[393408727,1762611033900,-168.0,0.00025732,2]
[393408728,1762611033911,-904.0,0.000258,4]
[393408729,1762611033920,-168.0,0.00025809,2]
[393408730,1762611033930,-205.34803783,0.00025965,2]
[393408731,1762611033939,-3469.66,0.00026,7]
[393408732,1762611033948,-1500.0,0.00026068,2]
[393408733,1762611033958,-295.77378123,0.00026068,2]
[393408734,1762611033967,-231.0,0.00026138,2]
[393408735,1762611033976,-460.0,0.00026144,2]
[393408736,1762611033986,-371.47593005,0.00026319,2]
[393408737,1762611033995,-5000.0,0.00026513,2]
[393408738,1762611034004,-168.0,0.00026546,2]
[393408739,1762611034014,-155.63892411,0.00026562,2]
[393408740,1762611034023,-250.0,0.00026575,2]
[393408741,1762611034032,-298.51530536,0.00026616,2]
[393408742,1762611034042,-312.342767,0.00026676,2]
[393408743,1762611034057,-560.0,0.00026692,2]
[393408744,1762611034066,-742.64658031,0.00026772,3]
[393408745,1762611034077,-150.0,0.0002682,2]
[393408746,1762611034089,-1011.3711714,0.00027123,3]
[393408747,1762611034101,-660.0,0.0002724,2]
[393408748,1762611034114,-160.0,0.00027368,3]
[393408749,1762611034126,-300.0,0.00027368,2]
[393408750,1762611034138,-199.27975353,0.0002739,2]
[393408751,1762611034150,-163.20490019,0.0002739,7]
[393408752,1762611034160,-151.0,0.00027397,31]
[393408753,1762611034170,-151.0,0.00027397,31]
[393408754,1762611034180,-151.0,0.00027397,31]
[393408755,1762611034193,-151.0,0.00027397,31]
[393408756,1762611034205,-157.92275667,0.00027397,5]
[393408757,1762611034216,-260.0,0.00027397,2]
[393408758,1762611034227,-3291.17,0.000274,2]
[393408759,1762611034238,-498.87,0.00027566,30]
[393408760,1762611034249,-153.0,0.00027616,14]
[393408761,1762611034260,-155.63892411,0.0002768,56]
[393408762,1762611034271,-587.0,0.00027776,2]
[393408763,1762611034284,-760.0,0.00027788,2]
[393408764,1762611034296,-393.84876572,0.00027916,5]
[393408765,1762611034307,-3469.66,0.00028,7]
[393408766,1762611034318,-600.0,0.00028,12]
[393408767,1762611034331,-340.01410393,0.00028,2]
[393408768,1762611034342,-289.52698207,0.00028052,2]
[393408769,1762611034353,-156.04,0.000281,7]
[393408770,1762611034367,-258.0,0.00028138,2]
[393408771,1762611034378,-550.60668949,0.00028215,2]
[393408772,1762611034389,-860.0,0.00028336,2]
[393408773,1762611034400,-742.64658031,0.00028338,4]
[393408774,1762611034412,-289.52698206,0.00028439,30]
[393408775,1762611034422,-150.0,0.00028473,5]
[393408776,1762611034433,-56510.07488747,0.000285,7]
[393408777,1762611034445,-151.0,0.000285,31]
[393408778,1762611034455,-151.0,0.000285,31]
[393408779,1762611034466,-184.0,0.00028548,14]
[393408780,1762611034477,-1164.02,0.00028567,2]
[393408781,1762611034489,-160.0,0.00028582,4]
[393408782,1762611034500,-17429.53587765,0.0002876,2]
[393408783,1762611034511,-155.63892411,0.00028799,110]
[393408784,1762611034523,-960.0,0.00028884,2]
[393408785,1762611034534,-153.0,0.00028997,14]
[393408786,1762611034545,-1000.0,0.00029,7]
[393408787,1762611034554,-3291.17,0.00029,2]
[393408788,1762611034564,-169.75,0.00029004,2]
[393408789,1762611034574,-250.0,0.00029021,5]
[393408790,1762611034583,-495.14691444,0.00029227,2]
[393408791,1762611034594,-289.52698207,0.00029233,56]
[393408792,1762611034606,-1060.0,0.00029432,2]
[393408793,1762611034616,-350.0,0.00029568,5]
[393408794,1762611034628,-180.37267253,0.00029592,4]
[393408795,1762611034639,-160.0,0.00029795,5]
[393408796,1762611034651,-10000.0,0.000298,2]
[393408797,1762611034661,-742.64658031,0.00029903,5]
[393408798,1762611034673,-1160.0,0.00029979,2]
[393408799,1762611034684,-149164.75788985,0.0003,20]
[393408800,1762611034695,-268.3719938,0.0003,2]
[393408801,1762611034707,-900.0,0.0003,2]
[393408802,1762611034718,-3430.30685575,0.0003,5]
[393408803,1762611034730,-3551.15641974,0.0003,60]
[393408804,1762611034741,-193.93068264,0.0003,2]
[393408805,1762611034752,-357.31706398,0.0003,2]
[393408806,1762611034763,-26716.15288588,0.0003,10]
[393408807,1762611034775,-151.0,0.0003,31]
[393408808,1762611034786,-151.0,0.0003,31]
[393408809,1762611034796,-1176.68,0.0003,30]
[393408810,1762611034806,-2000.0,0.0003,7]
[393408811,1762611034816,-234.375,0.0003004,110]
[393408812,1762611034826,-997.73,0.00030072,30]
[393408813,1762611034835,-474.58864157,0.00030116,5]
[393408814,1762611034845,-286.44422525,0.0003013,2]
[393408815,1762611034854,-2180.92159377,0.0003013,5]
[393408816,1762611034867,-526.0,0.00030134,2]
[393408817,1762611034879,-300.0,0.00030137,5]
[393408818,1762611034891,-285.0,0.00030138,2]
[393408819,1762611034903,-166.0,0.00030192,14]
[393408820,1762611034913,-500.0,0.00030197,7]
[393408821,1762611034925,-6572.01776448,0.00030199,2]
[393408822,1762611034935,-6565.92,0.00030199,2]
[393408823,1762611034945,-6565.92,0.00030199,2]
[393408824,1762611034955,-151.0,0.00030199,31]
[393408825,1762611034965,-240.127061,0.00030199,31]
[393408826,1762611034975,-672.81491013,0.0003022,2]
[393408827,1762611034988,-500.0,0.00030285,7]
[393408828,1762611035001,-3469.66,0.000303,7]
[393408829,1762611035014,-500.0,0.00030461,7]
[393408830,1762611035025,-712.6964431,0.00030527,2]
[393408831,1762611035036,-600.0,0.00030599,30]
[393408832,1762611035046,-3291.17,0.000306,2]
[393408833,1762611035057,-600.0,0.00030685,5]
[393408834,1762611035067,-500.0,0.00030917,7]
[393408835,1762611035077,-500.0,0.00030957,7]
[393408836,1762611035087,-500.0,0.00030974,7]
[393408837,1762611035097,-304.54098364,0.0003099,2]
[393408838,1762611035110,-188.37,0.00031,14]
[393408839,1762611035121,-160.0,0.00031009,6]
[393408840,1762611035131,-164.85323293,0.00031009,5]
[393408841,1762611035142,-14187.63132581,0.0003101,3]
[393408842,1762611035153,-500.0,0.00031044,7]
[393408843,1762611035163,-500.0,0.00031049,7]
[393408844,1762611035173,-500.0,0.00031118,7]
[393408845,1762611035184,-30000.0,0.0003112,2]
[393408846,1762611035194,-2328.05,0.00031164,2]
[393408847,1762611035205,-301.36400974,0.00031233,5]
[393408848,1762611035215,-169.75,0.00031287,2]
[393408849,1762611035226,-1000.0,0.00031449,10]
[393408850,1762611035237,-972.0,0.00031449,10]
[393408851,1762611035248,-742.64658031,0.00031468,6]
[393408852,1762611035258,-510.31626006,0.00031568,7]
[393408853,1762611035269,-1000.0,0.00031586,10]
[393408854,1762611035290,-1000.0,0.00031723,10]
[393408855,1762611035307,-508.28030893,0.0003176,7]
[393408856,1762611035320,-10859.01836619,0.000318,2]
[393408857,1762611035334,-1000.0,0.0003186,10]
[393408858,1762611035347,-1006.11403673,0.00031888,2]
[393408859,1762611035361,-43725.3961532,0.000319,2]
[393408860,1762611035373,-3291.17,0.000319,2]
[393408861,1762611035387,-1000.0,0.00031997,10]
[393408862,1762611035399,-1583.70910603,0.00031999,2]
[393408863,1762611035411,-500.0,0.00032,60]
[393408864,1762611035583,-250.0,0.00032,10]
[393408865,1762611035595,-594.42625828,0.00032,30]
[393408866,1762611035606,-1672.80926939,0.00032,2]
[393408867,1762611035620,-3469.66,0.00032,7]
[393408868,1762611035632,-156.04,0.00032,7]
[393408869,1762611035642,-780.91305888,0.00032024,7]
[393408870,1762611035655,-1000.0,0.00032134,10]
[393408871,1762611035666,-312.0,0.00032138,2]
[393408872,1762611035677,-500.0,0.00032201,7]
[393408873,1762611035689,-1000.0,0.00032271,10]
[393408874,1762611035698,-179.0,0.00032384,14]
[393408875,1762611035708,-1000.0,0.00032408,10]
[393408876,1762611035718,-1000.0,0.00032545,10]
[393408877,1762611035728,-1496.6,0.00032578,30]
[393408878,1762611035737,-1000.0,0.00032682,10]
[393408879,1762611035747,-747.0,0.000327,2]
[393408880,1762611035758,-1000.0,0.00032748,10]
[393408881,1762611035768,-1000.0,0.00032819,10]
[393408882,1762611035777,-302.39819,0.00032873,2]
[393408883,1762611035787,-627.42,0.00032876,2]
[393408884,1762611035796,-1000.0,0.00032876,2]
[393408885,1762611035806,-1000.0,0.00032876,2]
[393408886,1762611035815,-1000.0,0.00032876,2]
[393408887,1762611035824,-151.0,0.00032877,31]
[393408888,1762611035834,-151.0,0.00032877,31]
[393408889,1762611035843,-151.0,0.00032877,31]
[393408890,1762611035852,-151.0,0.00032877,31]
[393408891,1762611035865,-216.638158,0.00032877,31]
[393408892,1762611035875,-151.0,0.00032877,31]
[393408893,1762611035884,-151.0,0.00032877,31]
[393408894,1762611035893,-151.0,0.00032877,31]
[393408895,1762611035903,-151.0,0.00032877,31]
[393408896,1762611035912,-151.0,0.00032877,31]
[393408897,1762611035921,-151.0,0.00032877,31]
[393408898,1762611035931,-151.0,0.00032877,31]
[393408899,1762611035940,-230.557725,0.00032877,31]
[393408900,1762611035949,-1000.0,0.00032885,10]
[393408901,1762611035959,-151.79634,0.00032891,2]
[393408902,1762611035969,-302.0,0.00032892,2]
[393408903,1762611035978,-168.54869355,0.000329,120]
[393408904,1762611035987,-488.50651304,0.000329,120]
[393408905,1762611035996,-188.74226007,0.000329,120]
[393408906,1762611036006,-1092.93822612,0.000329,120]
[393408907,1762611036015,-184.31097707,0.000329,120]
[393408908,1762611036024,-201.55332535,0.000329,120]
[393408909,1762611036034,-200.10443907,0.000329,120]
[393408910,1762611036043,-162.06859215,0.000329,120]
[393408911,1762611036053,-188.44193806,0.000329,120]
[393408912,1762611036062,-302.0,0.00032911,2]
[393408913,1762611036071,-1000.0,0.00032956,10]
[393408914,1762611036081,-1779.58289016,0.00033,30]
[393408915,1762611036090,-7570.31365689,0.00033,2]
[393408916,1762611036099,-88434.52943439,0.00033,2]
[393408917,1762611036110,-154.03967284,0.00033,2]
[393408918,1762611036120,-5000.0,0.00033013,2]
[393408919,1762611036129,-1000.0,0.00033022,10]
[393408920,1762611036139,-743.38922689,0.00033033,7]
[393408921,1762611036148,-1000.0,0.00033093,10]
[393408922,1762611036158,-991.96,0.0003315,14]
[393408923,1762611036168,-1000.0,0.00033159,10]
[393408924,1762611036177,-252.30399458,0.00033165,2]
[393408925,1762611038158,-166.32,0.00025,2]
[393408927,1762611038168,-166.32,0.00025,2]
[393408929,1762611038178,-166.32,0.000251,2]
[393408930,1762611038187,-166.32,0.000251,2]
[393408931,1762611038197,-166.32,0.000252,2]
[393408932,1762611038206,-166.32,0.000252,2]
[393408933,1762611038216,-166.32,0.000253,2]
[393408934,1762611038225,-166.32,0.000253,2]
[393408935,1762611038235,-166.32,0.000254,2]
[393408936,1762611038244,-166.32,0.000254,2]
[393408937,1762611038254,-166.32,0.000255,2]
[393408938,1762611038263,-166.32,0.000255,2]
[393408939,1762611038273,-166.32,0.000256,2]
[393408940,1762611038284,-166.32,0.000256,2]
[393408941,1762611038295,-166.32,0.000256,2]
[393408942,1762611038305,-166.32,0.000257,2]
[393408943,1762611038315,-166.32,0.000257,2]
[393408944,1762611038325,-60.03877242,0.00033165,2]
[393408945,1762611038335,-3291.17,0.000332,14]
[393408946,1762611038345,-339.92743872,0.000332,117]
[393408947,1762611038355,-339.92743871,0.000332,117]
[393408948,1762611038367,-1000.0,0.0003323,10]
[393408949,1762611038378,-1000.0,0.00033296,10]
[393408950,1762611038388,-1000.0,0.00033296,10]
[393408951,1762611038398,-500.0,0.0003333,7]
[393408952,1762611038407,-500.0,0.0003333,7]
[393408953,1762611038417,-1000.0,0.00033367,10]
[393408954,1762611038427,-627.42,0.00033424,2]
[393408955,1762611038436,-567.68043673,0.00033424,2]
[393408956,1762611038445,-1000.0,0.00033424,2]
[393408957,1762611038455,-1000.0,0.00033424,2]
[393408958,1762611038464,-1000.0,0.00033433,10]
[393408959,1762611038474,-1000.0,0.00033433,10]
[393408960,1762611038483,-1000.0,0.00033504,10]
[393408961,1762611038493,-1000.0,0.0003357,10]
[393408962,1762611038503,-1000.0,0.0003357,10]
[393408963,1762611038513,-3469.66,0.000336,14]
[393408964,1762611038524,-1000.0,0.00033641,10]
[393408965,1762611038534,-720.0,0.00033659,30]
[393408966,1762611038544,-991.96,0.00033698,15]
[393408967,1762611038554,-1000.0,0.00033778,10]
[393408968,1762611038564,-168.54869355,0.000339,120]
[393408969,1762611038574,-488.50651304,0.000339,120]
[393408970,1762611038584,-188.74226007,0.000339,120]
[393408971,1762611038594,-1092.93822612,0.000339,120]
[393408972,1762611038605,-184.31097707,0.000339,120]
[393408973,1762611038617,-162.06859215,0.000339,120]
[393408974,1762611038627,-1000.0,0.00033915,10]
[393408975,1762611038638,-627.42,0.00033972,2]
[393408976,1762611038649,-1000.0,0.00033972,2]
[393408977,1762611038660,-1000.0,0.00033972,2]
[393408978,1762611038671,-5075.7057073,0.0003398,2]
[393408979,1762611038682,-1003.56101179,0.00034,2]
[393408980,1762611038693,-160.0,0.00034,3]
[393408981,1762611038703,-162.0,0.00034,3]
[393408982,1762611038714,-282.92,0.00034016,2]
[393408983,1762611038724,-1000.0,0.00034052,10]
[393408984,1762611038734,-339.0,0.00034138,120]
[393408985,1762611038745,-1000.0,0.00034189,10]
[393408986,1762611038755,-203.0,0.0003423,37]
[393408987,1762611038765,-991.96,0.00034246,16]
[393408988,1762611038775,-270.67,0.00034298,60]
[393408989,1762611038785,-1000.0,0.00034326,10]
[393408990,1762611038794,-200.0,0.0003434,120]
[393408991,1762611038804,-4191.96,0.00034358,2]
[393408992,1762611038814,-200.37990319,0.00034358,7]
[393408993,1762611038823,-270.67,0.00034398,60]
[393408994,1762611038832,-1000.0,0.00034463,10]
[393408995,1762611038842,-270.67,0.00034498,60]
[393408996,1762611038851,-1999.82781894,0.000345,14]
[393408997,1762611038874,-976.25280881,0.000345,14]
[393409030,1762611040395,-166.09,0.00023625,2]
[393409032,1762611040404,-166.32,0.000258,2]
[393409034,1762611040414,-41.67989249,0.000258,2]
[393409039,1762611040454,-124.64010751,0.000258,2]
[393409041,1762611040463,-166.32,0.000259,2]
[393409043,1762611040472,-166.32,0.000259,2]
[393409045,1762611040482,-315.08937225,0.000345,14]
[393409047,1762611040492,-627.42,0.0003452,2]
[393409049,1762611040502,-1000.0,0.0003452,2]
[393409051,1762611040512,-1000.0,0.0003452,2]
[393409053,1762611040522,-52000.0,0.0003455,30]
[393409055,1762611040531,-270.67,0.00034598,60]
[393409057,1762611040540,-1000.0,0.000346,10]
[393409059,1762611040549,-270.67,0.00034698,60]
[393409061,1762611040559,-519.85202024,0.00034728,12]
[393409171,1762611044147,-845.63470854,0.00034728,12]
[393409173,1762611044156,-1000.0,0.00034737,10]
[393409175,1762611044166,-991.96,0.00034794,17]
[393409177,1762611044175,-270.67,0.00034798,60]
[393409179,1762611044184,-250.0,0.000348,14]
[393409181,1762611044193,-250.0,0.000348,14]
[393409183,1762611044203,-1000.0,0.00034874,10]
[393409185,1762611044212,-270.67,0.00034898,60]
[393409187,1762611044222,-168.54869355,0.000349,120]
[393409189,1762611044231,-488.50651304,0.000349,120]
[393409191,1762611044241,-188.74226007,0.000349,120]
[393409193,1762611044250,-1092.93822612,0.000349,120]
[393409195,1762611044259,-184.31097707,0.000349,120]
[393409197,1762611044269,-162.06859215,0.000349,120]
[393409199,1762611044279,-156.138263,0.00034904,30]
[393409201,1762611044290,-495.14691444,0.00034911,2]
[393409203,1762611044304,-270.67,0.00034998,60]
[393409205,1762611044313,-2220.48969568,0.00035,5]
[393409208,1762611044325,-4458.80197338,0.00035,5]
[393409210,1762611044337,-1046.32681666,0.00035,5]
[393409213,1762611044364,-419.18467264,0.00035,5]
[393409300,1762611046683,-412.0,0.00025375,2]
[393409301,1762611046695,-412.0,0.00028375,2]
[393409302,1762611046705,-1157.67,0.00028569,2]
[393409303,1762611046715,-2315.35,0.00031166,2]
[393409304,1762611046724,-3473.02,0.00033763,2]
[393409305,1762611046734,-32290.87900315,0.00035,5]
[393409306,1762611316059,320.481459,0.00032876,120]
[393409307,1762611419367,3000.0,0.00036861,20]
[393409316,1762612113796,188.60697122,0.00036862,20]
[393409388,1762612238463,-274.37451531,0.00022496,2]
[393409389,1762612238522,-266.04642179,0.00022496,2]
[393409390,1762612238533,-150.0,0.0002274,2]
[393409391,1762612238543,-179.02,0.00023477,10]
[393409392,1762612238554,-25000.75,0.00023487,2]
[393409393,1762612238564,-25000.75,0.00023487,2]
[393409394,1762612238574,-25000.75,0.00023487,2]
[393409395,1762612238585,-25000.75,0.00023487,2]
[393409396,1762612238594,-25000.75,0.00023487,2]
[393409397,1762612238604,-77601.18357822,0.00023488,2]
[393409474,1762612245169,-694.0900242,0.00023488,2]
[393409475,1762612245346,-87.48701204,0.00023488,2]
[393409481,1762612247078,-29977.09414722,0.00023488,2]
[393409482,1762612247089,-341.38,0.00023488,10]
[393409483,1762612247099,-160.0,0.00023496,2]
[393409484,1762612247110,-25000.75,0.00023498,2]
[393409485,1762612247119,-25000.75,0.00023498,2]
[393409486,1762612247129,-25000.75,0.00023498,2]
[393409487,1762612247138,-25000.75,0.00023498,2]
[393409488,1762612247148,-25000.75,0.00023498,2]
[393409489,1762612247159,-25000.75,0.00023498,2]
[393409490,1762612247169,-25000.75,0.00023498,2]
[393409491,1762612247179,-25000.75,0.00023498,2]
[393409492,1762612247189,-25000.75,0.00023498,2]
[393409493,1762612247199,-25000.75,0.00023498,2]
[393409494,1762612247208,-24494.02585281,0.00023498,2]
[393409495,1762612420114,5128.67,0.00032877,120]
[393409504,1762612835045,277.704221,0.00013699,2]
[393409565,1762613431798,-277.704221,0.00020187,2]
[393409566,1762613431809,-150.0,0.00020963,2]
[393409567,1762613431819,-399.81834234,0.00022578,2]
[393409568,1762613431828,-753.18250451,0.00022889,2]
[393409569,1762613431838,-177.0,0.00022963,2]
[393409570,1762613431847,-585.02546262,0.00022973,2]
[393409571,1762613431856,-500.0,0.00022973,2]
[393409572,1762613431866,-300.0,0.00022987,2]
[393409573,1762613431875,-1200.0,0.00022988,2]
[393409574,1762613431885,-1200.0,0.00022988,2]
[393409575,1762613431894,-500.0,0.00022989,2]
[393409576,1762613431904,-500.0,0.00022989,2]
[393409577,1762613431914,-500.0,0.00022989,2]
[393409578,1762613431923,-500.0,0.00022989,2]
[393409579,1762613431933,-500.0,0.00022989,2]
[393409580,1762613431942,-500.0,0.00022989,2]
[393409581,1762613431951,-500.0,0.00022989,2]
[393409582,1762613431961,-500.0,0.00022989,2]
[393409583,1762613431970,-406.98980758,0.00022989,2]
[393409584,1762613431979,-500.0,0.00022989,2]
[393409585,1762613431988,-500.0,0.00022989,2]
[393409586,1762613431998,-500.0,0.00022989,2]
[393409587,1762613432007,-500.0,0.00022989,2]
[393409588,1762613432018,-500.0,0.00022989,2]
[393409589,1762613432029,-500.0,0.00022989,2]
[393409590,1762613432039,-500.0,0.00022989,2]
[393409591,1762613432048,-8354.7,0.00022989,2]
[393409592,1762613432059,-8354.7,0.00022989,2]
[393409593,1762613432068,-8354.7,0.00022989,2]
[393409594,1762613432078,-8354.7,0.00022989,2]
[393409595,1762613432087,-8354.7,0.00022989,2]
[393409596,1762613432097,-100000.0,0.0002299,2]
[393409597,1762613432107,-152.58,0.00023,2]
[393409598,1762613432117,-152.58,0.00023,2]
[393409599,1762613432127,-152.58,0.00023,2]
[393409600,1762613432136,-152.58,0.00023,2]
[393409601,1762613432146,-152.58,0.00023,2]
[393409602,1762613432155,-152.58,0.00023,2]
[393409603,1762613432165,-152.58,0.00023,2]
[393409604,1762613432174,-152.58,0.000231,2]
[393409605,1762613432185,-152.58,0.000231,2]
[393409606,1762613432195,-152.58,0.000231,2]
[393409607,1762613432205,-152.58,0.000231,2]
[393409608,1762613432215,-152.58,0.000231,2]
[393409609,1762613432224,-152.58,0.000231,2]
[393409610,1762613432235,-152.58,0.000231,2]
[393409611,1762613432245,-152.58,0.000231,2]
[393409612,1762613432254,-152.58,0.000231,2]
[393409613,1762613432264,-152.58,0.000231,2]
[393409614,1762613432273,-152.58,0.000231,2]
[393409615,1762613432284,-152.58,0.000231,2]
[393409616,1762613432294,-2577.66520611,0.00023184,2]
[393409617,1762613432304,-152.58,0.000232,2]
[393409618,1762613432314,-152.58,0.000232,2]
[393409619,1762613432324,-152.58,0.000232,2]
[393409620,1762613432334,-152.58,0.000232,2]
[393409621,1762613432345,-152.58,0.000232,2]
[393409622,1762613432355,-152.58,0.000232,2]
[393409623,1762613432365,-152.58,0.000232,2]
[393409624,1762613432375,-152.58,0.000232,2]
[393409625,1762613432386,-152.58,0.000232,2]
[393409626,1762613432395,-152.58,0.000232,2]
[393409627,1762613432405,-152.58,0.000232,2]
[393409628,1762613432414,-207.21996592,0.00023216,7]
[393409629,1762613432424,-253.72081731,0.00023288,2]
[393409630,1762613432433,-502.3954909,0.00023373,2]
[393409631,1762613432443,-500.0,0.00023396,2]
[393409632,1762613432453,-500.0,0.00023396,2]
[393409633,1762613432463,-500.0,0.00023396,2]
[393409634,1762613432472,-500.0,0.00023396,2]
[393409635,1762613432483,-434.26463632,0.00023396,2]
[393409636,1762613432493,-8354.7,0.00023396,2]
[393409637,1762613432502,-8354.7,0.00023396,2]
[393409638,1762613432512,-8354.7,0.00023396,2]
[393409639,1762613432523,-8354.7,0.00023396,2]
[393409640,1762613432532,-8354.7,0.00023396,2]
[393409641,1762613432541,-8354.7,0.00023396,2]
[393409642,1762613432552,-8354.7,0.00023396,2]
[393409643,1762613432562,-8354.7,0.00023396,2]
[393409644,1762613432571,-8354.7,0.00023396,2]
[393409645,1762613432580,-8354.7,0.00023396,2]
[393409646,1762613432589,-1000.0,0.00023397,2]
[393409647,1762613432600,-1000.0,0.00023397,2]
[393409648,1762613432609,-1000.0,0.00023397,2]
[393409649,1762613432618,-1000.0,0.00023397,2]
[393409650,1762613432628,-1000.0,0.00023397,2]
[393409651,1762613432637,-8354.7,0.00023397,2]
[393409652,1762613432647,-8354.7,0.00023397,2]
[393409653,1762613432656,-8354.7,0.00023397,2]
[393409654,1762613432665,-8354.7,0.00023397,2]
[393409655,1762613432674,-8354.7,0.00023397,2]
[393409656,1762613432683,-8354.7,0.00023397,2]
[393409657,1762613432693,-8354.7,0.00023397,2]
[393409658,1762613432702,-8354.7,0.00023397,2]
[393409659,1762613432711,-8354.83857277,0.00023397,2]
[393409660,1762613432720,-151.0,0.00023398,7]
[393409661,1762613432730,-151.0,0.00023398,7]
[393409662,1762613432739,-685000.0,0.00023398,2]
[393409663,1762613432750,-1387.86,0.000235,7]
[393409664,1762613432759,-564.10314146,0.00023751,2]
[393409665,1762613432768,-46572.27768154,0.00024142,2]
[393409666,1762613432777,-10388.19215454,0.0002465,2]
[393409667,1762613432786,-297928.64437187,0.000249,2]
[393409676,1762613437589,-152.58,0.000232,2]
[393409677,1762613437599,-152.58,0.000233,2]
[393409678,1762613437611,-152.58,0.000233,2]
[393409679,1762613437621,-152.58,0.000233,2]
[393409680,1762613437630,-152.58,0.000233,2]
[393409681,1762613437641,-152.58,0.000233,2]
[393409682,1762613437651,-62.83896658,0.000233,2]
[393409721,1762613439834,-89.74103342,0.000233,2]
[393409723,1762613439844,-152.58,0.000233,2]
[393409724,1762613439855,-142.12575206,0.000233,2]
[393410068,1762613446316,-10.45424794,0.000233,2]
[393410069,1762613446327,-152.58,0.000233,2]
[393410070,1762613446440,-152.58,0.000233,2]
[393410071,1762613446454,-152.58,0.000233,2]
[393410072,1762613446466,-284.48,0.00023387,10]
[393410073,1762613446476,-152.58,0.000234,2]
[393410074,1762613446485,-152.58,0.000234,2]
[393410075,1762613446494,-152.58,0.000234,2]
[393410076,1762613446505,-152.58,0.000234,2]
[393410077,1762613446515,-152.58,0.000234,2]
[393410078,1762613446530,-152.58,0.000234,2]
[393410079,1762613446540,-237.07,0.0002489,10]
[393410080,1762613446549,-96343.05276191,0.000249,2]
[393410115,1762613538227,1156803.87,0.00036876,60]
[393410120,1762613564072,8011.39,0.00036876,20]
[393410127,1762613768191,2730.0,0.000175,2]
[393410131,1762613982149,166.0,0.00032876,120]
[393410133,1762614261879,160.0,0.0003,120]
[393410164,1762614632084,-614.74090975,0.00022698,2]
[393410166,1762614632096,-585.25909025,0.00022698,2]
[393410168,1762614632107,-1200.0,0.00022699,2]
[393410170,1762614632117,-300.0,0.00022699,2]
[393410172,1762614632129,-516.79090975,0.00022699,2]
[393410175,1762614632143,-617.20909025,0.00022699,2]
[393410177,1762614632155,-150.0,0.000227,2]
[393410179,1762614632166,-1417.68358827,0.000227,2]
[393410320,1762614637927,-306.017431,0.000227,2]
[393410367,1762614640123,-446.16806148,0.000227,2]
[393410563,1762614840138,5000.0,0.00032877,120]
[393410564,1762615060288,5000.0,0.00032877,120]
[393410565,1762615193881,4144.02,0.000328,120]
[393410566,1762615299167,28000.0,0.00036839,120]
[393410568,1762615490347,249.933798,0.00013699,2]
[393410618,1762615832039,-249.933798,0.00020187,2]
[393410620,1762615832048,-150.0,0.00020987,2]
[393410622,1762615832058,-619.77944031,0.00021787,2]